[Event "*** Titled Tuesday Blitz"]
[Site "Chess.com"]
[Date "2019.07.02"]
[Round "1"]
[White "xdb"]
[Black "Azatnew"]
[Result "0-1"]
[WhiteElo "2236"]
[BlackElo "2594"]
[TimeControl "180+2"]
[EndTime "13:12:37 PDT"]
[Termination "Azatnew won by resignation"]

1. e4 {[%clk 0:03:01.9]} 1... c5 {[%clk 0:03:00.9]} 2. Nf3 {[%clk 0:03:03]} 2...
Nc6 {[%clk 0:03:01.7]} 3. d4 {[%clk 0:03:03]} 3... cxd4 {[%clk 0:03:03.5]} 4.
Nxd4 {[%clk 0:03:04.5]} 4... g6 {[%clk 0:03:01.4]} 5. c4 {[%clk 0:03:04.5]} 5...
Bg7 {[%clk 0:03:02.6]} 6. Be3 {[%clk 0:03:04.9]} 6... Nf6 {[%clk 0:03:03.8]} 7.
Nc3 {[%clk 0:03:06.3]} 7... Ng4 {[%clk 0:03:04.9]} 8. Qxg4 {[%clk 0:03:01.9]}
8... Nxd4 {[%clk 0:03:05.8]} 9. Qd1 {[%clk 0:02:58.2]} 9... Ne6 {[%clk
0:03:06.8]} 10. Be2 {[%clk 0:02:53]} 10... d6 {[%clk 0:03:07.5]} 11. O-O {[%clk
0:02:52.8]} 11... O-O {[%clk 0:03:08.3]} 12. Qd2 {[%clk 0:02:41.4]} 12... Nc5
{[%clk 0:03:06.2]} 13. f3 {[%clk 0:02:37.6]} 13... Be6 {[%clk 0:03:07]} 14. Nd5
{[%clk 0:02:28]} 14... Bxd5 {[%clk 0:03:06.8]} 15. exd5 {[%clk 0:02:29.9]} 15...
Rc8 {[%clk 0:02:58.2]} 16. Rab1 {[%clk 0:02:24.8]} 16... Na4 {[%clk 0:02:56.9]}
17. Rfc1 {[%clk 0:02:15.1]} 17... b6 {[%clk 0:02:53.6]} 18. Bd1 {[%clk
0:02:03.9]} 18... Nc5 {[%clk 0:02:54.1]} 19. b4 {[%clk 0:02:01.9]} 19... Nd7
{[%clk 0:02:54.9]} 20. Bb3 {[%clk 0:01:44.3]} 20... Ne5 {[%clk 0:02:50.1]} 21.
Bd4 {[%clk 0:01:41.5]} 21... Qd7 {[%clk 0:02:49.6]} 22. Rc3 {[%clk 0:01:14.5]}
22... Rc7 {[%clk 0:02:43.2]} 23. f4 {[%clk 0:01:04.5]} 23... Ng4 {[%clk
0:02:37.1]} 24. Re1 {[%clk 0:00:59.2]} 24... Rfc8 {[%clk 0:02:35.4]} 25. Bxg7
{[%clk 0:00:54.9]} 25... Kxg7 {[%clk 0:02:37.3]} 26. h3 {[%clk 0:00:54.5]} 26...
Nf6 {[%clk 0:02:38.4]} 27. Rce3 {[%clk 0:00:53.8]} 27... Qd8 {[%clk 0:02:28.6]}
28. Qd4 {[%clk 0:00:53.2]} 28... Kg8 {[%clk 0:02:26.6]} 29. Kh2 {[%clk
0:00:50.1]} 29... h5 {[%clk 0:02:25.6]} 30. f5 {[%clk 0:00:44.6]} 30... Kg7
{[%clk 0:02:26.8]} 31. fxg6 {[%clk 0:00:43.1]} 31... fxg6 {[%clk 0:02:28.7]} 32.
Re6 {[%clk 0:00:41.8]} 32... Qf8 {[%clk 0:02:26.4]} 33. Qe3 {[%clk 0:00:41.9]}
33... Kf7 {[%clk 0:02:01]} 34. Qg5 {[%clk 0:00:39.2]} 34... Qg7 {[%clk
0:01:59.7]} 35. Rf1 {[%clk 0:00:35.6]} 35... Kg8 {[%clk 0:01:35.3]} 36. Rfxf6
{[%clk 0:00:34.3]} 36... exf6 {[%clk 0:01:37.2]} 37. Rxf6 {[%clk 0:00:36.2]}
37... Kh7 {[%clk 0:01:37.8]} 38. Bc2 {[%clk 0:00:36.3]} 38... Kh8 {[%clk
0:01:33.2]} 39. Bxg6 {[%clk 0:00:32]} 39... Kg8 {[%clk 0:01:21.4]} 40. Rxd6
{[%clk 0:00:22.8]} 40... Re7 {[%clk 0:01:14.5]} 41. Qxh5 {[%clk 0:00:21.5]}
41... Rf8 {[%clk 0:01:13.4]} 42. Bf5 {[%clk 0:00:21.3]} 42... Qe5+ {[%clk
0:01:14.3]} 43. Kh1 {[%clk 0:00:19.4]} 43... Qxd6 {[%clk 0:01:14.8]} 44. Qg4+
{[%clk 0:00:18.5]} 44... Rg7 {[%clk 0:01:14.3]} 45. Be6+ {[%clk 0:00:19.7]}
45... Rf7 {[%clk 0:01:09.2]} 46. Qf5 {[%clk 0:00:19.1]} 46... Kf8 {[%clk
0:01:04.4]} 47. Bxf7 {[%clk 0:00:19.3]} 47... Rxf7 {[%clk 0:01:06.3]} 48. Qc8+
{[%clk 0:00:20.1]} 48... Kg7 {[%clk 0:01:07.6]} 49. Qg4+ {[%clk 0:00:20.7]}
49... Qg6 {[%clk 0:01:09]} 50. Qd4+ {[%clk 0:00:21.4]} 50... Qf6 {[%clk
0:01:10.4]} 51. Qg4+ {[%clk 0:00:22.4]} 51... Kf8 {[%clk 0:01:11.7]} 52. Qc8+
{[%clk 0:00:20.3]} 52... Kg7 {[%clk 0:01:12.9]} 53. Qg4+ {[%clk 0:00:21.5]}
53... Kh6 {[%clk 0:01:14.6]} 54. c5 {[%clk 0:00:20.4]} 54... Qa1+ {[%clk
0:01:14.3]} 55. Kh2 {[%clk 0:00:21.6]} 55... Qe5+ {[%clk 0:01:15.7]} 56. Kg1
{[%clk 0:00:21.6]} 56... Qxd5 {[%clk 0:01:13.5]} 57. cxb6 {[%clk 0:00:21.3]}
57... axb6 {[%clk 0:01:14.3]} 58. Qh4+ {[%clk 0:00:22.4]} 58... Qh5 {[%clk
0:01:15.1]} 59. Qd4 {[%clk 0:00:21.3]} 59... Qf5 {[%clk 0:01:15.2]} 60. Qxb6+
{[%clk 0:00:20.6]} 60... Rf6 {[%clk 0:01:15.8]} 61. Qe3+ {[%clk 0:00:20.9]}
61... Kg7 {[%clk 0:01:17.3]} 62. Qg3+ {[%clk 0:00:21.6]} 62... Kf7 {[%clk
0:01:18.2]} 63. Qc7+ {[%clk 0:00:22.3]} 63... Kg6 {[%clk 0:01:19.7]} 64. Qg3+
{[%clk 0:00:23]} 64... Qg5 {[%clk 0:01:21.2]} 65. Qd3+ {[%clk 0:00:24]} 65...
Kh6 {[%clk 0:01:21.8]} 66. a4 {[%clk 0:00:23.1]} 66... Qc1+ {[%clk 0:01:21.9]}
67. Kh2 {[%clk 0:00:23.4]} 67... Qf4+ {[%clk 0:01:23.4]} 68. Kg1 {[%clk
0:00:24]} 68... Qxb4 {[%clk 0:01:24.4]} 69. Qe3+ {[%clk 0:00:20.9]} 69... Qf4
{[%clk 0:01:25.2]} 70. Qe7 {[%clk 0:00:18.3]} 70... Rd6 {[%clk 0:01:16.6]} 71.
Qe2 {[%clk 0:00:15.5]} 71... Rd2 {[%clk 0:01:12.8]} 72. Qe6+ {[%clk 0:00:15.3]}
72... Kg7 {[%clk 0:01:12.1]} 73. Qe7+ {[%clk 0:00:16.2]} 73... Kg6 {[%clk
0:01:12.8]} 74. Qe6+ {[%clk 0:00:16.1]} 74... Qf6 {[%clk 0:01:12.9]} 75. Qg8+
{[%clk 0:00:16.8]} 75... Kf5 {[%clk 0:01:10.2]} 76. Qg4+ {[%clk 0:00:15.3]}
76... Ke5 {[%clk 0:01:11.5]} 77. Qg3+ {[%clk 0:00:16.5]} 77... Qf4 {[%clk
0:01:13]} 78. Qg7+ {[%clk 0:00:16.3]} 78... Ke4 {[%clk 0:01:12.5]} 79. Qe7+
{[%clk 0:00:16.7]} 79... Kd3 {[%clk 0:01:13.9]} 80. Qd7+ {[%clk 0:00:15.5]}
80... Ke2 {[%clk 0:01:15.1]} 81. Qb5+ {[%clk 0:00:14.4]} 81... Rd3 {[%clk
0:01:12.5]} 82. a5 {[%clk 0:00:14.9]} 82... Qc1+ {[%clk 0:01:05.6]} 83. Kh2
{[%clk 0:00:16]} 83... Qc7+ {[%clk 0:01:05.1]} 84. Kg1 {[%clk 0:00:16.7]} 84...
Qd7 {[%clk 0:00:53.3]} 85. Qh5+ {[%clk 0:00:15.5]} 85... Kd2 {[%clk 0:00:53.9]}
86. a6 {[%clk 0:00:14]} 86... Qd4+ {[%clk 0:00:54.9]} 87. Kh2 {[%clk 0:00:14.6]}
87... Qd6+ {[%clk 0:00:55.9]} 88. Kg1 {[%clk 0:00:13.4]} 88... Qxa6 {[%clk
0:00:57]} 89. Qg5+ {[%clk 0:00:13.8]} 89... Kc2 {[%clk 0:00:56.7]} 90. Qc5+
{[%clk 0:00:14.1]} 90... Kd1 {[%clk 0:00:57.4]} 91. Qh5+ {[%clk 0:00:13.8]}
91... Kc2 {[%clk 0:00:58.8]} 92. Qc5+ {[%clk 0:00:14.7]} 92... Rc3 {[%clk
0:01:00.4]} 93. Qf2+ {[%clk 0:00:14.8]} 93... Kb3 {[%clk 0:01:00.8]} 94. Qf7+
{[%clk 0:00:15]} 94... Qc4 {[%clk 0:01:00.5]} 95. Qb7+ {[%clk 0:00:15.7]} 95...
Kc2 {[%clk 0:01:01.5]} 96. Qh7+ {[%clk 0:00:15.9]} 96... Kb2 {[%clk 0:01:02.9]}
97. Qb7+ {[%clk 0:00:16.7]} 97... Kc1 {[%clk 0:01:04.2]} 98. Qh7 {[%clk
0:00:13.4]} 98... Qd4+ {[%clk 0:01:04.6]} 99. Kh2 {[%clk 0:00:12.7]} 99... Qd6+
{[%clk 0:01:05.6]} 100. Kg1 {[%clk 0:00:12.7]} 100... Re3 {[%clk 0:01:00.6]}
101. Qh6 {[%clk 0:00:12.2]} 101... Qxh6 {[%clk 0:01:01.4]} 0-1

[Event "*** Titled Tuesday Blitz"]
[Site "Chess.com"]
[Date "2019.07.02"]
[Round "1"]
[White "DerSchachaffe"]
[Black "Alex_Molchanov"]
[Result "1-0"]
[WhiteElo "2303"]
[BlackElo "2560"]
[TimeControl "180+2"]
[EndTime "13:15:31 PDT"]
[Termination "DerSchachaffe won by checkmate"]

1. e4 {[%clk 0:02:59.6]} 1... c6 {[%clk 0:03:00.8]} 2. d4 {[%clk 0:02:57.3]}
2... d5 {[%clk 0:03:02.7]} 3. e5 {[%clk 0:02:56.9]} 3... Bf5 {[%clk 0:03:03.2]}
4. h4 {[%clk 0:02:51.3]} 4... h5 {[%clk 0:03:02.5]} 5. Bd3 {[%clk 0:02:52]} 5...
Bxd3 {[%clk 0:03:04]} 6. Qxd3 {[%clk 0:02:53.9]} 6... e6 {[%clk 0:03:05.5]} 7.
Bg5 {[%clk 0:02:54.5]} 7... Be7 {[%clk 0:03:07.1]} 8. Nf3 {[%clk 0:02:54.5]}
8... Nh6 {[%clk 0:03:08.6]} 9. Nc3 {[%clk 0:02:54.7]} 9... Nf5 {[%clk
0:03:08.8]} 10. Ne2 {[%clk 0:02:44.5]} 10... c5 {[%clk 0:03:09.7]} 11. dxc5
{[%clk 0:02:41.4]} 11... Qa5+ {[%clk 0:03:09.9]} 12. c3 {[%clk 0:02:41.1]} 12...
Qxc5 {[%clk 0:03:10.8]} 13. Ned4 {[%clk 0:02:24.5]} 13... Nxd4 {[%clk
0:03:07.2]} 14. cxd4 {[%clk 0:01:56.8]} 14... Qa5+ {[%clk 0:03:05.7]} 15. Ke2
{[%clk 0:01:48.5]} 15... Qa6 {[%clk 0:03:06]} 16. Rhc1 {[%clk 0:01:47]} 16...
Qxd3+ {[%clk 0:03:02.1]} 17. Kxd3 {[%clk 0:01:48.9]} 17... Nc6 {[%clk
0:03:03.7]} 18. a3 {[%clk 0:01:41.6]} 18... f6 {[%clk 0:02:53.1]} 19. exf6
{[%clk 0:01:38.6]} 19... gxf6 {[%clk 0:02:55]} 20. Bf4 {[%clk 0:01:30.9]} 20...
Kd7 {[%clk 0:02:56]} 21. Rc3 {[%clk 0:01:28.2]} 21... Rac8 {[%clk 0:02:53.5]}
22. Rac1 {[%clk 0:01:24.9]} 22... Bd6 {[%clk 0:02:48.1]} 23. Bxd6 {[%clk
0:01:24.8]} 23... Kxd6 {[%clk 0:02:50]} 24. b4 {[%clk 0:01:22.7]} 24... a6
{[%clk 0:02:50.6]} 25. g3 {[%clk 0:01:20.5]} 25... Rhg8 {[%clk 0:02:50.7]} 26.
Ke3 {[%clk 0:01:17.2]} 26... Kd7 {[%clk 0:02:42.7]} 27. Rc5 {[%clk 0:01:09.1]}
27... Rg4 {[%clk 0:02:37.2]} 28. Kd3 {[%clk 0:01:07.6]} 28... Rgg8 {[%clk
0:02:26.8]} 29. R5c2 {[%clk 0:01:06.2]} 29... e5 {[%clk 0:02:24]} 30. dxe5
{[%clk 0:01:06.1]} 30... fxe5 {[%clk 0:02:25.9]} 31. Ng5 {[%clk 0:01:05]} 31...
e4+ {[%clk 0:02:22.1]} 32. Ke3 {[%clk 0:01:05.6]} 32... Rgf8 {[%clk 0:02:23.2]}
33. Rc5 {[%clk 0:01:02.6]} 33... d4+ {[%clk 0:02:21.2]} 34. Kxe4 {[%clk
0:01:00.1]} 34... Rce8+ {[%clk 0:02:17.5]} 35. Kd3 {[%clk 0:00:54.9]} 35... Rxf2
{[%clk 0:02:18.8]} 36. Rd5+ {[%clk 0:00:54]} 36... Kc7 {[%clk 0:02:15]} 37. Rxd4
{[%clk 0:00:52.7]} 37... Rg2 {[%clk 0:02:03]} 38. Ne4 {[%clk 0:00:37.1]} 38...
Kb8 {[%clk 0:02:03.4]} 39. Rd5 {[%clk 0:00:27.7]} 39... Ne5+ {[%clk 0:01:52.5]}
40. Kd4 {[%clk 0:00:27.4]} 40... Nc6+ {[%clk 0:01:47.3]} 41. Kd3 {[%clk
0:00:27.8]} 41... Ra2 {[%clk 0:01:11.1]} 42. Rc3 {[%clk 0:00:27.2]} 42... Ne5+
{[%clk 0:01:12.3]} 43. Kd4 {[%clk 0:00:25.2]} 43... Nc6+ {[%clk 0:01:13.8]} 44.
Kd3 {[%clk 0:00:26]} 44... Ra1 {[%clk 0:01:15.3]} 45. Nd2 {[%clk 0:00:15.4]}
45... Rg1 {[%clk 0:01:06.3]} 46. Rxh5 {[%clk 0:00:10.6]} 46... Rd8+ {[%clk
0:01:05.7]} 47. Ke2 {[%clk 0:00:05.5]} 47... Rg2+ {[%clk 0:01:06]} 48. Kf3
{[%clk 0:00:07]} 48... Rgxd2 {[%clk 0:01:03.3]} 49. Rhc5 {[%clk 0:00:06.7]}
49... R2d6 {[%clk 0:01:00.2]} 50. g4 {[%clk 0:00:06.9]} 50... Rf8+ {[%clk
0:01:01.2]} 51. Kg3 {[%clk 0:00:07.9]} 51... Rd1 {[%clk 0:00:59.4]} 52. h5
{[%clk 0:00:08.6]} 52... Rg8 {[%clk 0:00:56.7]} 53. Kh4 {[%clk 0:00:07.5]} 53...
Rd4 {[%clk 0:00:56.5]} 54. Rg3 {[%clk 0:00:07.6]} 54... Nd8 {[%clk 0:00:51.5]}
55. h6 {[%clk 0:00:08.1]} 55... Nf7 {[%clk 0:00:51.1]} 56. Rh5 {[%clk
0:00:07.4]} 56... Nh8 {[%clk 0:00:47.4]} 57. h7 {[%clk 0:00:06]} 57... Rg7
{[%clk 0:00:48.8]} 58. Rh6 {[%clk 0:00:06.2]} 58... Rdd7 {[%clk 0:00:48.3]} 59.
Rf3 {[%clk 0:00:05.1]} 59... Rd8 {[%clk 0:00:29.6]} 60. g5 {[%clk 0:00:06.2]}
60... Ka7 {[%clk 0:00:27]} 61. Kh5 {[%clk 0:00:07.3]} 61... Rd5 {[%clk
0:00:26.4]} 62. Rg3 {[%clk 0:00:05.5]} 62... a5 {[%clk 0:00:20.7]} 63. bxa5
{[%clk 0:00:05.9]} 63... Rxa5 {[%clk 0:00:22.6]} 64. Kh4 {[%clk 0:00:06.9]}
64... Ra4+ {[%clk 0:00:21.9]} 65. Kh3 {[%clk 0:00:06.8]} 65... Ra5 {[%clk
0:00:20.7]} 66. Kh4 {[%clk 0:00:07.4]} 66... Ra4+ {[%clk 0:00:21.6]} 67. Kh3
{[%clk 0:00:08.5]} 67... Rc4 {[%clk 0:00:21.3]} 68. Rg4 {[%clk 0:00:07.9]} 68...
Rc3+ {[%clk 0:00:22.2]} 69. Rg3 {[%clk 0:00:09]} 69... Rc1 {[%clk 0:00:22.2]}
70. Kg4 {[%clk 0:00:08.9]} 70... Nf7 {[%clk 0:00:19.2]} 71. h8=Q {[%clk
0:00:08.9]} 71... Rxg5+ {[%clk 0:00:20]} 72. Kf4 {[%clk 0:00:06.8]} 72... Rf1+
{[%clk 0:00:21]} 73. Ke4 {[%clk 0:00:07]} 73... Re1+ {[%clk 0:00:20.4]} 74. Kd3
{[%clk 0:00:06.5]} 74... Nxh8 {[%clk 0:00:20.9]} 75. Rxg5 {[%clk 0:00:06.8]}
75... Nf7 {[%clk 0:00:22.5]} 76. Ra5+ {[%clk 0:00:07.8]} 76... Kb8 {[%clk
0:00:23.7]} 77. Rf6 {[%clk 0:00:07.3]} 77... Nd8 {[%clk 0:00:24.5]} 78. Rf8
{[%clk 0:00:06.7]} 78... Kc7 {[%clk 0:00:25.9]} 79. Rc5+ {[%clk 0:00:07.3]}
79... Nc6 {[%clk 0:00:26.9]} 80. Rc3 {[%clk 0:00:07.7]} 80... Rh1 {[%clk
0:00:26.9]} 81. Rf5 {[%clk 0:00:07.8]} 81... Rh4 {[%clk 0:00:26.9]} 82. Kc2
{[%clk 0:00:07.1]} 82... Kb6 {[%clk 0:00:27.4]} 83. Rf2 {[%clk 0:00:05.5]} 83...
Ra4 {[%clk 0:00:26.2]} 84. Kb2 {[%clk 0:00:05]} 84... Ka7 {[%clk 0:00:25]} 85.
Rf7 {[%clk 0:00:04.7]} 85... Ne5 {[%clk 0:00:22.7]} 86. Re7 {[%clk 0:00:04.6]}
86... Nc6 {[%clk 0:00:23.1]} 87. Rxc6 {[%clk 0:00:05.2]} 87... Rh4 {[%clk
0:00:22]} 88. Rc2 {[%clk 0:00:05.4]} 88... Rh3 {[%clk 0:00:22.1]} 89. Rcc7
{[%clk 0:00:06]} 89... Rh2+ {[%clk 0:00:22.4]} 90. Kc3 {[%clk 0:00:06.4]} 90...
Rh3+ {[%clk 0:00:23.7]} 91. Kb4 {[%clk 0:00:07]} 91... Rh5 {[%clk 0:00:24.1]}
92. Rxb7+ {[%clk 0:00:07.7]} 92... Ka6 {[%clk 0:00:25.9]} 93. Ra7+ {[%clk
0:00:08.2]} 93... Kb6 {[%clk 0:00:27.8]} 94. Reb7+ {[%clk 0:00:09.2]} 94... Kc6
{[%clk 0:00:29.2]} 95. Rc7+ {[%clk 0:00:10.1]} 95... Kb6 {[%clk 0:00:30.5]} 96.
Rcb7+ {[%clk 0:00:11]} 96... Kc6 {[%clk 0:00:31.7]} 97. Kb3 {[%clk 0:00:11.7]}
97... Rh3+ {[%clk 0:00:32]} 98. Ka4 {[%clk 0:00:12.7]} 98... Rh4+ {[%clk
0:00:32.1]} 99. Rb4 {[%clk 0:00:13.6]} 99... Rh2 {[%clk 0:00:32.2]} 100. Ra6+
{[%clk 0:00:13.9]} 100... Kc5 {[%clk 0:00:33.1]} 101. Ra5+ {[%clk 0:00:14.9]}
101... Kc6 {[%clk 0:00:34.5]} 102. Ra6+ {[%clk 0:00:14.2]} 102... Kc5 {[%clk
0:00:35.5]} 103. Rb8 {[%clk 0:00:14.7]} 103... Rh3 {[%clk 0:00:35.1]} 104. Ra7
{[%clk 0:00:14.7]} 104... Kc6 {[%clk 0:00:36.2]} 105. Rg7 {[%clk 0:00:15.3]}
105... Rh6 {[%clk 0:00:35.3]} 106. Ka5 {[%clk 0:00:15]} 106... Rh3 {[%clk
0:00:35.7]} 107. a4 {[%clk 0:00:15.6]} 107... Rh4 {[%clk 0:00:36.3]} 108. Rb4
{[%clk 0:00:15.5]} 108... Rh8 {[%clk 0:00:36.1]} 109. Rg6+ {[%clk 0:00:15.5]}
109... Kc5 {[%clk 0:00:37.3]} 110. Rb5+ {[%clk 0:00:16]} 110... Kc4 {[%clk
0:00:38.8]} 111. Rc6+ {[%clk 0:00:17]} 111... Kd4 {[%clk 0:00:39.2]} 112. Rb7
{[%clk 0:00:14.6]} 112... Ra8+ {[%clk 0:00:39.5]} 113. Kb5 {[%clk 0:00:15.1]}
113... Kd5 {[%clk 0:00:40]} 114. Rc1 {[%clk 0:00:15.9]} 114... Rh8 {[%clk
0:00:39.3]} 115. a5 {[%clk 0:00:16.9]} 115... Rh2 {[%clk 0:00:39.6]} 116. Rd7+
{[%clk 0:00:17.5]} 116... Ke6 {[%clk 0:00:40.6]} 117. Rd4 {[%clk 0:00:18.2]}
117... Ra2 {[%clk 0:00:41.3]} 118. Re1+ {[%clk 0:00:17.9]} 118... Kf5 {[%clk
0:00:42]} 119. a6 {[%clk 0:00:18.7]} 119... Rb2+ {[%clk 0:00:43]} 120. Rb4
{[%clk 0:00:19.8]} 120... Ra2 {[%clk 0:00:44.4]} 121. Kb6 {[%clk 0:00:19.9]}
121... Kf6 {[%clk 0:00:43.5]} 122. a7 {[%clk 0:00:20.6]} 122... Ra1 {[%clk
0:00:44.8]} 123. Kb7 {[%clk 0:00:21.5]} 123... Rxe1 {[%clk 0:00:45.2]} 124. a8=Q
{[%clk 0:00:21.8]} 124... Re7+ {[%clk 0:00:46.8]} 125. Kc6 {[%clk 0:00:20.9]}
125... Re6+ {[%clk 0:00:48.7]} 126. Kb5 {[%clk 0:00:21.8]} 126... Re5+ {[%clk
0:00:50.5]} 127. Ka4 {[%clk 0:00:22.7]} 127... Re6 {[%clk 0:00:52.4]} 128. Qf8+
{[%clk 0:00:22.2]} 128... Kg6 {[%clk 0:00:53.3]} 129. Qg8+ {[%clk 0:00:22.6]}
129... Kf6 {[%clk 0:00:55.2]} 130. Qxe6+ {[%clk 0:00:22.6]} 130... Kxe6 {[%clk
0:00:57.1]} 131. Kb5 {[%clk 0:00:23.8]} 131... Kd5 {[%clk 0:00:59]} 132. Ra4
{[%clk 0:00:23.9]} 132... Ke5 {[%clk 0:01:00.9]} 133. Kc5 {[%clk 0:00:25]}
133... Ke6 {[%clk 0:01:01.4]} 134. Re4+ {[%clk 0:00:25.2]} 134... Kf5 {[%clk
0:01:03.3]} 135. Kd5 {[%clk 0:00:26.2]} 135... Kf6 {[%clk 0:01:05.2]} 136. Ra4
{[%clk 0:00:24.7]} 136... Ke7 {[%clk 0:01:07.1]} 137. Ra6 {[%clk 0:00:24.2]}
137... Kf7 {[%clk 0:01:09]} 138. Re6 {[%clk 0:00:25]} 138... Kg7 {[%clk
0:01:10.7]} 139. Ke5 {[%clk 0:00:26.4]} 139... Kf7 {[%clk 0:01:12.6]} 140. Kf5
{[%clk 0:00:26.9]} 140... Kf8 {[%clk 0:01:13.7]} 141. Kg6 {[%clk 0:00:26.5]}
141... Kg8 {[%clk 0:01:14.6]} 142. Re8# {[%clk 0:00:27.9]} 1-0

[Event "*** Titled Tuesday Blitz"]
[Site "Chess.com"]
[Date "2019.07.02"]
[Round "2"]
[White "FrenchMonster2002"]
[Black "NemtsevIgor"]
[Result "1-0"]
[WhiteElo "2440"]
[BlackElo "2292"]
[TimeControl "180+2"]
[EndTime "13:19:13 PDT"]
[Termination "FrenchMonster2002 won by checkmate"]

1. e4 {[%clk 0:03:01.9]} 1... c6 {[%clk 0:03:00.8]} 2. Nc3 {[%clk 0:03:02.9]}
2... d5 {[%clk 0:03:00.7]} 3. Nf3 {[%clk 0:03:04.6]} 3... Bg4 {[%clk 0:03:00.7]}
4. h3 {[%clk 0:03:05.6]} 4... Bxf3 {[%clk 0:03:00.2]} 5. Qxf3 {[%clk 0:03:07.5]}
5... e6 {[%clk 0:03:01.2]} 6. d3 {[%clk 0:03:08.9]} 6... Nf6 {[%clk 0:03:00.5]}
7. Bd2 {[%clk 0:03:10.2]} 7... Bc5 {[%clk 0:03:00.3]} 8. g4 {[%clk 0:03:08.9]}
8... O-O {[%clk 0:03:00.7]} 9. g5 {[%clk 0:03:09.9]} 9... Nfd7 {[%clk
0:03:01.8]} 10. h4 {[%clk 0:03:10.5]} 10... b5 {[%clk 0:03:02.5]} 11. h5 {[%clk
0:03:06.5]} 11... b4 {[%clk 0:03:01.1]} 12. Ne2 {[%clk 0:03:01.5]} 12... a5
{[%clk 0:02:54.5]} 13. Bh3 {[%clk 0:02:59.4]} 13... a4 {[%clk 0:02:50.8]} 14. g6
{[%clk 0:02:29.6]} 14... fxg6 {[%clk 0:02:49.6]} 15. Bxe6+ {[%clk 0:02:30.4]}
15... Kh8 {[%clk 0:02:50.7]} 16. hxg6 {[%clk 0:02:32]} 16... Nf6 {[%clk
0:01:42.7]} 17. Qxf6 {[%clk 0:02:28.3]} 17... h6 {[%clk 0:01:30.5]} 18. Rxh6#
{[%clk 0:02:28.5]} 1-0

[Event "*** Titled Tuesday Blitz"]
[Site "Chess.com"]
[Date "2019.07.02"]
[Round "2"]
[White "CMS13"]
[Black "ShiningDiamond"]
[Result "1-0"]
[WhiteElo "2058"]
[BlackElo "1587"]
[TimeControl "180+2"]
[EndTime "13:19:35 PDT"]
[Termination "CMS13 won by checkmate"]

1. e4 {[%clk 0:03:01.9]} 1... c5 {[%clk 0:02:59.2]} 2. Nc3 {[%clk 0:03:02.4]}
2... Nc6 {[%clk 0:02:59.9]} 3. Bb5 {[%clk 0:03:03.1]} 3... g6 {[%clk 0:03:00]}
4. Bxc6 {[%clk 0:03:04.1]} 4... bxc6 {[%clk 0:03:01]} 5. d3 {[%clk 0:03:05.4]}
5... Bg7 {[%clk 0:03:01.8]} 6. f4 {[%clk 0:03:06.7]} 6... d6 {[%clk 0:03:01.6]}
7. Nf3 {[%clk 0:03:07.8]} 7... Nf6 {[%clk 0:03:01.8]} 8. O-O {[%clk 0:03:09]}
8... O-O {[%clk 0:03:02.7]} 9. Qe1 {[%clk 0:03:10.3]} 9... d5 {[%clk 0:03:01.9]}
10. e5 {[%clk 0:03:02.2]} 10... Ne8 {[%clk 0:02:55]} 11. b3 {[%clk 0:03:00.3]}
11... Nc7 {[%clk 0:02:42.2]} 12. Na4 {[%clk 0:03:00.7]} 12... Ne6 {[%clk
0:02:30.4]} 13. c4 {[%clk 0:02:59]} 13... dxc4 {[%clk 0:02:22.2]} 14. dxc4
{[%clk 0:02:59]} 14... f6 {[%clk 0:02:05.9]} 15. Be3 {[%clk 0:02:48.6]} 15...
fxe5 {[%clk 0:02:02.5]} 16. fxe5 {[%clk 0:02:49.5]} 16... Rxf3 {[%clk
0:01:39.3]} 17. Rxf3 {[%clk 0:02:45.6]} 17... Bxe5 {[%clk 0:01:40.2]} 18. Rd1
{[%clk 0:02:42.5]} 18... Bd4 {[%clk 0:01:34.2]} 19. Nxc5 {[%clk 0:02:33.4]}
19... Nxc5 {[%clk 0:01:17]} 20. Bxd4 {[%clk 0:02:31.4]} 20... Nd7 {[%clk
0:01:12.5]} 21. Qe6# {[%clk 0:02:31.2]} 1-0

[Event "*** Titled Tuesday Blitz"]
[Site "Chess.com"]
[Date "2019.07.02"]
[Round "2"]
[White "MehdiHosseinipour"]
[Black "gmmoranda"]
[Result "1-0"]
[WhiteElo "2586"]
[BlackElo "2775"]
[TimeControl "180+2"]
[EndTime "13:19:54 PDT"]
[Termination "MehdiHosseinipour won by resignation"]

1. e4 {[%clk 0:03:01.9]} 1... c5 {[%clk 0:03:00]} 2. Nf3 {[%clk 0:03:02.8]} 2...
d6 {[%clk 0:03:01.2]} 3. d4 {[%clk 0:03:04.1]} 3... cxd4 {[%clk 0:03:03.1]} 4.
Nxd4 {[%clk 0:03:06]} 4... Nf6 {[%clk 0:03:04.5]} 5. Nc3 {[%clk 0:03:07.5]} 5...
a6 {[%clk 0:03:05.7]} 6. Be2 {[%clk 0:03:08.6]} 6... e6 {[%clk 0:03:04.6]} 7.
O-O {[%clk 0:03:09.2]} 7... Be7 {[%clk 0:03:05.5]} 8. f4 {[%clk 0:03:10]} 8...
Qc7 {[%clk 0:03:06.7]} 9. Bf3 {[%clk 0:03:10.2]} 9... Nc6 {[%clk 0:03:06.5]} 10.
Be3 {[%clk 0:03:11.1]} 10... O-O {[%clk 0:03:05.7]} 11. a4 {[%clk 0:03:12.2]}
11... Bd7 {[%clk 0:03:01.1]} 12. Nb3 {[%clk 0:03:12.6]} 12... b6 {[%clk
0:02:52.6]} 13. g4 {[%clk 0:03:10.9]} 13... Bc8 {[%clk 0:02:53.7]} 14. g5 {[%clk
0:03:12.1]} 14... Nd7 {[%clk 0:02:53.7]} 15. Bg2 {[%clk 0:03:13.3]} 15... Bb7
{[%clk 0:02:46.1]} 16. Rf3 {[%clk 0:03:14.3]} 16... Rfe8 {[%clk 0:02:00.4]} 17.
Rh3 {[%clk 0:03:13.7]} 17... Nf8 {[%clk 0:01:46.3]} 18. Qh5 {[%clk 0:03:11.7]}
18... Na5 {[%clk 0:01:37.3]} 19. Nxa5 {[%clk 0:02:57]} 19... bxa5 {[%clk
0:01:39.2]} 20. Rf1 {[%clk 0:02:57.3]} 20... Rab8 {[%clk 0:01:34.4]} 21. Rf2
{[%clk 0:02:41.8]} 21... Ba8 {[%clk 0:01:29.2]} 22. f5 {[%clk 0:02:32.8]} 22...
Rxb2 {[%clk 0:01:18.2]} 23. fxe6 {[%clk 0:02:29.9]} 23... Qxc3 {[%clk
0:01:18.5]} 1-0